[Event "Titled Tuesday Blitz July 18 Early 2023"]
[White "Sargsyan, Anna M."]
[Black "luksona14"]
[WhiteFideId "13308130"]
[WhiteElo "2566"]
[BlackElo "2408"]
[Result "1-0"]
[Round "5"]
[TimeControl "180+2"]
[Date "2023.07.18"]
[WhiteClock "0:01:00"]
[BlackClock "0:00:11"]
[Board "110"]

1. d4 {[%clk 0:03:00]}  Nf6 {[%clk 0:02:57]} 2. c4 {[%clk 0:03:01]}  e6 {[%clk 0:02:56]} 3. Nf3 {[%clk 0:03:01]}  b6 {[%clk 0:02:56]} 4. g3 {[%clk 0:03:01]}  Bb7 {[%clk 0:02:57]} 5. Bg2 {[%clk 0:03:02]}  Be7 {[%clk 0:02:55]} 6. O-O {[%clk 0:03:01]}  O-O {[%clk 0:02:56]} 7. Nc3 {[%clk 0:03:02]}  Ne4 {[%clk 0:02:55]} 8. Nxe4 {[%clk 0:03:01]}  Bxe4 {[%clk 0:02:54]} 9. Bf4 {[%clk 0:03:02]}  d6 {[%clk 0:02:46]} 10. Rc1 {[%clk 0:03:02]}  Nd7 {[%clk 0:02:46]} 11. Re1 {[%clk 0:03:03]}  Bf6 {[%clk 0:02:43]} 12. Bh3 {[%clk 0:03:01]}  Bb7 {[%clk 0:02:41]} 13. e4 {[%clk 0:03:01]}  g6 {[%clk 0:02:40]} 14. Bg2 {[%clk 0:03:00]}  Qe7 {[%clk 0:02:39]} 15. Qd2 {[%clk 0:02:56]}  Bg7 {[%clk 0:02:38]} 16. b3 {[%clk 0:02:56]}  Rad8 {[%clk 0:02:36]} 17. Bg5 {[%clk 0:02:55]}  Bf6 {[%clk 0:02:35]} 18. Bh6 {[%clk 0:02:55]}  Rfe8 {[%clk 0:02:35]} 19. h4 {[%clk 0:02:48]}  e5 {[%clk 0:02:30]} 20. dxe5 {[%clk 0:02:46]}  dxe5 {[%clk 0:02:26]} 21. Nh2 {[%clk 0:02:43]}  Nc5 {[%clk 0:02:25]} 22. Qe3 {[%clk 0:02:38]}  Nd3 {[%clk 0:02:17]} 23. Ng4 {[%clk 0:02:39]}  Nxe1 {[%clk 0:02:08]} 24. Rxe1 {[%clk 0:02:32]}  Bg7 {[%clk 0:01:56]} 25. h5 {[%clk 0:02:21]}  Bc8 {[%clk 0:01:49]} 26. Bxg7 {[%clk 0:02:20]}  Kxg7 {[%clk 0:01:49]} 27. Qh6+ {[%clk 0:02:20]}  Kg8 {[%clk 0:01:48]} 28. Ne3 {[%clk 0:02:20]}  Qf8 {[%clk 0:01:47]} 29. Qg5 {[%clk 0:02:17]}  f6 {[%clk 0:01:47]} 30. Qh4 {[%clk 0:02:18]}  g5 {[%clk 0:01:47]} 31. Qh2 {[%clk 0:02:18]}  h6 {[%clk 0:01:48]} 32. Bh3 {[%clk 0:02:18]}  Rd2 {[%clk 0:01:45]} 33. Bxc8 {[%clk 0:02:17]}  Rxc8 {[%clk 0:01:45]} 34. Nf5 {[%clk 0:02:18]}  Kh7 {[%clk 0:01:45]} 35. Qh3 {[%clk 0:02:14]}  Rcd8 {[%clk 0:01:42]} 36. Qg4 {[%clk 0:02:14]}  Qf7 {[%clk 0:01:42]} 37. Ne3 {[%clk 0:02:13]}  Qd7 {[%clk 0:01:41]} 38. Qf3 {[%clk 0:02:12]}  Qe6 {[%clk 0:01:39]} 39. Nd5 {[%clk 0:02:11]}  Kg7 {[%clk 0:01:38]} 40. Nxc7 {[%clk 0:02:10]}  Qf7 {[%clk 0:01:34]} 41. Nd5 {[%clk 0:02:08]}  Rxa2 {[%clk 0:01:34]} 42. Rd1 {[%clk 0:02:09]}  Rf8 {[%clk 0:01:25]} 43. Ne3 {[%clk 0:02:06]}  b5 {[%clk 0:01:22]} 44. Rd6 {[%clk 0:01:57]}  bxc4 {[%clk 0:01:19]} 45. bxc4 {[%clk 0:01:58]}  Ra1+ {[%clk 0:01:12]} 46. Kg2 {[%clk 0:01:59]}  Rc1 {[%clk 0:01:12]} 47. Qf5 {[%clk 0:01:50]}  Qxh5 {[%clk 0:01:06]} 48. Rd7+ {[%clk 0:01:49]}  Rf7 {[%clk 0:01:06]} 49. Rxf7+ {[%clk 0:01:44]}  Qxf7 {[%clk 0:01:07]} 50. Qc8 {[%clk 0:01:40]}  a5 {[%clk 0:00:55]} 51. Nf5+ {[%clk 0:01:35]}  Kh7 {[%clk 0:00:53]} 52. Nd6 {[%clk 0:01:35]}  Qe7 {[%clk 0:00:47]} 53. c5 {[%clk 0:01:30]}  a4 {[%clk 0:00:47]} 54. Nf5 {[%clk 0:01:22]}  Qf7 {[%clk 0:00:39]} 55. Nd6 {[%clk 0:01:19]}  Qe7 {[%clk 0:00:27]} 56. Qf5+ {[%clk 0:01:13]}  Kg7 {[%clk 0:00:27]} 57. Qh3 {[%clk 0:01:14]}  Kg6 {[%clk 0:00:15]} 58. Qc8 {[%clk 0:01:02]}  Kg7 {[%clk 0:00:11]} 59. Nf5+ {[%clk 0:01:02]}  Kf7 {[%clk 0:00:12]} 60. Nxe7 {[%clk 0:01:02]}  Kxe7 {[%clk 0:00:13]} 61. Qb7+ {[%clk 0:01:02]}  Kf8 {[%clk 0:00:12]} 62. Qa8+ {[%clk 0:01:01]}  Ke7 {[%clk 0:00:11]} 63. Qxa4 {[%clk 0:01:01]}  Rxc5 {[%clk 0:00:11]} 64. Qa7+ {[%clk 0:01:00]}  Kd6 {[%clk 0:00:12]} 65. Qg7 {[%clk 0:01:00]}  Ke6 {[%clk 0:00:12]} 66. Qxh6 {[%clk 0:01:01]}  Rc7 {[%clk 0:00:12]} 67. Qf8 {[%clk 0:01:00]}  Re7 {[%clk 0:00:12]} 68. Qc8+ {[%clk 0:01:00]}  Rd7 {[%clk 0:00:12]} 69. Kh3 {[%clk 0:00:59]}  Ke7 {[%clk 0:00:13]} 70. Kg4 {[%clk 0:00:59]}  Ke6 {[%clk 0:00:14]} 71. f3 {[%clk 0:00:58]}  Kd6 {[%clk 0:00:13]} 72. Kf5 {[%clk 0:00:58]}  Rc7 {[%clk 0:00:13]} 73. Qxc7+ {[%clk 0:00:58]}  Kxc7 {[%clk 0:00:13]} 74. Kxf6 {[%clk 0:00:59]}  Kd6 {[%clk 0:00:14]} 75. Kxg5 {[%clk 0:00:59]}  Ke6 {[%clk 0:00:11]} 76. Kg6 {[%clk 0:01:00]} 1-0


[Site "https://www.chess.com"]

[Event "Titled Tuesday Blitz July 18 Early 2023"]
[White "NovoselovRoman"]
[Black "Silva Lucena, Cristian"]
[BlackFideId "2232588"]
[WhiteElo "2557"]
[BlackElo "2404"]
[Result "1-0"]
[Round "5"]
[TimeControl "180+2"]
[Date "2023.07.18"]
[WhiteClock "0:00:04"]
[BlackClock "0:00:00"]
[Board "113"]

1. e4 {[%clk 0:02:55]}  e5 {[%clk 0:02:58]} 2. Nf3 {[%clk 0:02:55]}  Nc6 {[%clk 0:02:58]} 3. Bc4 {[%clk 0:02:55]}  Bc5 {[%clk 0:02:57]} 4. d3 {[%clk 0:02:51]}  Nf6 {[%clk 0:02:56]} 5. Nc3 {[%clk 0:02:40]}  h6 {[%clk 0:02:47]} 6. Be3 {[%clk 0:02:35]}  Bb6 {[%clk 0:02:44]} 7. Nd5 {[%clk 0:02:32]}  Bxe3 {[%clk 0:02:16]} 8. fxe3 {[%clk 0:02:33]}  O-O {[%clk 0:02:14]} 9. Qe2 {[%clk 0:02:22]}  d6 {[%clk 0:02:08]} 10. Rf1 {[%clk 0:02:13]}  Nxd5 {[%clk 0:02:01]} 11. Bxd5 {[%clk 0:02:12]}  Ne7 {[%clk 0:02:00]} 12. Bb3 {[%clk 0:02:11]}  Be6 {[%clk 0:01:55]} 13. Nh4 {[%clk 0:02:07]}  a5 {[%clk 0:01:48]} 14. Kd2 {[%clk 0:01:43]}  Qd7 {[%clk 0:01:35]} 15. h3 {[%clk 0:01:30]}  Qb5 {[%clk 0:01:32]} 16. Nf5 {[%clk 0:00:58]}  Nxf5 {[%clk 0:01:24]} 17. exf5 {[%clk 0:00:59]}  Bxb3 {[%clk 0:01:19]} 18. axb3 {[%clk 0:01:00]}  f6 {[%clk 0:01:19]} 19. Ra4 {[%clk 0:00:56]}  Qc5 {[%clk 0:01:11]} 20. Rc4 {[%clk 0:00:45]}  Qb6 {[%clk 0:01:08]} 21. g4 {[%clk 0:00:42]}  d5 {[%clk 0:01:07]} 22. Ra4 {[%clk 0:00:42]}  Qc5 {[%clk 0:01:04]} 23. Rfa1 {[%clk 0:00:36]}  b5 {[%clk 0:01:03]} 24. R4a2 {[%clk 0:00:20]}  Qb4+ {[%clk 0:01:02]} 25. Kc1 {[%clk 0:00:13]}  a4 {[%clk 0:00:54]} 26. c3 {[%clk 0:00:11]}  Qxb3 {[%clk 0:00:52]} 27. Ra3 {[%clk 0:00:11]}  c5 {[%clk 0:00:38]} 28. Rxb3 {[%clk 0:00:11]}  axb3 {[%clk 0:00:39]} 29. Rxa8 {[%clk 0:00:10]}  Rxa8 {[%clk 0:00:37]} 30. Kb1 {[%clk 0:00:10]}  Kf8 {[%clk 0:00:36]} 31. Qf3 {[%clk 0:00:10]}  Rd8 {[%clk 0:00:33]} 32. Kc1 {[%clk 0:00:10]}  Kf7 {[%clk 0:00:32]} 33. Kd2 {[%clk 0:00:08]}  Ke7 {[%clk 0:00:32]} 34. h4 {[%clk 0:00:08]}  Kd6 {[%clk 0:00:32]} 35. Qd1 {[%clk 0:00:07]}  c4 {[%clk 0:00:31]} 36. g5 {[%clk 0:00:08]}  hxg5 {[%clk 0:00:30]} 37. hxg5 {[%clk 0:00:08]}  Ra8 {[%clk 0:00:29]} 38. Qg1 {[%clk 0:00:08]}  Ra2 {[%clk 0:00:28]} 39. Qb1 {[%clk 0:00:05]}  Ra8 {[%clk 0:00:27]} 40. gxf6 {[%clk 0:00:05]}  gxf6 {[%clk 0:00:26]} 41. d4 {[%clk 0:00:04]}  Rh8 {[%clk 0:00:24]} 42. Qg1 {[%clk 0:00:04]}  Rh3 {[%clk 0:00:20]} 43. Qg7 {[%clk 0:00:04]}  Rh2+ {[%clk 0:00:16]} 44. Ke1 {[%clk 0:00:04]}  Rxb2 {[%clk 0:00:15]} 45. Qxf6+ {[%clk 0:00:04]}  Kc7 {[%clk 0:00:15]} 46. Qe7+ {[%clk 0:00:03]}  Kc6 {[%clk 0:00:14]} 47. f6 {[%clk 0:00:03]}  Rc2 {[%clk 0:00:13]} 48. Kd1 {[%clk 0:00:03]}  Rf2 {[%clk 0:00:11]} 49. f7 {[%clk 0:00:02]}  b2 {[%clk 0:00:12]} 50. Qc5+ {[%clk 0:00:02]}  Kd7 {[%clk 0:00:10]} 51. Qxb5+ {[%clk 0:00:02]}  Ke7 {[%clk 0:00:04]} 52. Ke1 {[%clk 0:00:02]}  Rh2 {[%clk 0:00:03]} 53. Qc5+ {[%clk 0:00:03]}  Kxf7 {[%clk 0:00:00]} 54. Qxd5+ {[%clk 0:00:04]} 1-0


[Site "https://www.chess.com"]

[Event "Titled Tuesday Blitz July 18 Early 2023"]
[White "Okike, David"]
[Black "robertoalejandro10"]
[WhiteFideId "8500134"]
[WhiteElo "2334"]
[BlackElo "2549"]
[Result "0-1"]
[Round "5"]
[TimeControl "180+2"]
[Date "2023.07.18"]
[WhiteClock "0:00:47"]
[BlackClock "0:00:04"]
[Board "120"]

1. e4 {[%clk 0:03:00]}  c5 {[%clk 0:02:57]} 2. Nf3 {[%clk 0:03:00]}  g6 {[%clk 0:02:56]} 3. d4 {[%clk 0:02:57]}  cxd4 {[%clk 0:02:56]} 4. Qxd4 {[%clk 0:02:57]}  Nf6 {[%clk 0:02:56]} 5. Bb5 {[%clk 0:02:56]}  a6 {[%clk 0:02:45]} 6. Ba4 {[%clk 0:02:56]}  b5 {[%clk 0:02:44]} 7. e5 {[%clk 0:02:56]}  Nc6 {[%clk 0:02:37]} 8. Qh4 {[%clk 0:02:56]}  Nxe5 {[%clk 0:02:12]} 9. Nxe5 {[%clk 0:02:55]}  bxa4 {[%clk 0:02:11]} 10. Qxa4 {[%clk 0:02:55]}  Bg7 {[%clk 0:02:10]} 11. O-O {[%clk 0:02:54]}  O-O {[%clk 0:02:10]} 12. Rd1 {[%clk 0:02:52]}  d6 {[%clk 0:02:09]} 13. c4 {[%clk 0:02:45]}  Bb7 {[%clk 0:02:05]} 14. Nc3 {[%clk 0:02:42]}  Qc7 {[%clk 0:02:03]} 15. Nf3 {[%clk 0:02:35]}  Bxf3 {[%clk 0:01:58]} 16. gxf3 {[%clk 0:02:35]}  Rfc8 {[%clk 0:01:54]} 17. Nd5 {[%clk 0:02:34]}  Nxd5 {[%clk 0:01:51]} 18. cxd5 {[%clk 0:02:34]}  Qc2 {[%clk 0:01:50]} 19. Qxc2 {[%clk 0:02:27]}  Rxc2 {[%clk 0:01:51]} 20. Rb1 {[%clk 0:02:26]}  Rb8 {[%clk 0:01:49]} 21. Bg5 {[%clk 0:02:14]}  Rb7 {[%clk 0:01:39]} 22. Re1 {[%clk 0:02:08]}  Kf8 {[%clk 0:01:15]} 23. Rbc1 {[%clk 0:01:58]}  Rxc1 {[%clk 0:00:46]} 24. Rxc1 {[%clk 0:01:57]}  f6 {[%clk 0:00:37]} 25. Be3 {[%clk 0:01:54]}  Rxb2 {[%clk 0:00:36]} 26. Rc8+ {[%clk 0:01:36]}  Kf7 {[%clk 0:00:36]} 27. a3 {[%clk 0:01:36]}  Rb3 {[%clk 0:00:30]} 28. Bc1 {[%clk 0:01:35]}  f5 {[%clk 0:00:27]} 29. Kg2 {[%clk 0:01:32]}  Rb5 {[%clk 0:00:18]} 30. Ra8 {[%clk 0:01:27]}  a5 {[%clk 0:00:17]} 31. Bd2 {[%clk 0:01:26]}  Rxd5 {[%clk 0:00:16]} 32. Bxa5 {[%clk 0:01:26]}  Bd4 {[%clk 0:00:14]} 33. Bb4 {[%clk 0:01:23]}  Bc5 {[%clk 0:00:14]} 34. Bxc5 {[%clk 0:01:21]}  Rxc5 {[%clk 0:00:15]} 35. a4 {[%clk 0:01:21]}  Rc2 {[%clk 0:00:15]} 36. f4 {[%clk 0:01:20]}  Ra2 {[%clk 0:00:15]} 37. Kf3 {[%clk 0:01:19]}  Ra3+ {[%clk 0:00:14]} 38. Ke2 {[%clk 0:01:19]}  Ke6 {[%clk 0:00:14]} 39. Ra7 {[%clk 0:01:19]}  h6 {[%clk 0:00:13]} 40. h4 {[%clk 0:01:14]}  Rh3 {[%clk 0:00:12]} 41. a5 {[%clk 0:01:14]}  Rxh4 {[%clk 0:00:11]} 42. Ke3 {[%clk 0:01:13]}  Rh3+ {[%clk 0:00:10]} 43. f3 {[%clk 0:01:13]}  Rh1 {[%clk 0:00:10]} 44. Ra8 {[%clk 0:01:12]}  Ra1 {[%clk 0:00:10]} 45. Rh8 {[%clk 0:01:11]}  Rxa5 {[%clk 0:00:09]} 46. Rxh6 {[%clk 0:01:11]}  Kf6 {[%clk 0:00:09]} 47. Rh7 {[%clk 0:01:09]}  Ra3+ {[%clk 0:00:09]} 48. Kf2 {[%clk 0:01:09]}  e6 {[%clk 0:00:09]} 49. Rd7 {[%clk 0:01:08]}  Rd3 {[%clk 0:00:09]} 50. Ke2 {[%clk 0:01:08]}  Rd5 {[%clk 0:00:09]} 51. Ke3 {[%clk 0:01:09]}  g5 {[%clk 0:00:09]} 52. fxg5+ {[%clk 0:01:07]}  Kxg5 {[%clk 0:00:10]} 53. f4+ {[%clk 0:01:08]}  Kf6 {[%clk 0:00:10]} 54. Rh7 {[%clk 0:01:08]}  Rb5 {[%clk 0:00:09]} 55. Kd3 {[%clk 0:01:08]}  Rb3+ {[%clk 0:00:09]} 56. Ke2 {[%clk 0:01:08]}  e5 {[%clk 0:00:08]} 57. Rh6+ {[%clk 0:01:08]}  Ke7 {[%clk 0:00:08]} 58. Rh5 {[%clk 0:01:06]}  Ke6 {[%clk 0:00:08]} 59. Rh6+ {[%clk 0:01:07]}  Kd5 {[%clk 0:00:07]} 60. fxe5 {[%clk 0:01:02]}  dxe5 {[%clk 0:00:08]} 61. Rh8 {[%clk 0:01:03]}  Ke4 {[%clk 0:00:08]} 62. Kd2 {[%clk 0:01:01]}  Rb2+ {[%clk 0:00:08]} 63. Kc3 {[%clk 0:01:00]}  Rb7 {[%clk 0:00:07]} 64. Kd2 {[%clk 0:00:59]}  f4 {[%clk 0:00:07]} 65. Rf8 {[%clk 0:00:58]}  Rd7+ {[%clk 0:00:07]} 66. Ke2 {[%clk 0:00:58]}  Rh7 {[%clk 0:00:07]} 67. Kf2 {[%clk 0:00:58]}  Rh2+ {[%clk 0:00:06]} 68. Kg1 {[%clk 0:00:58]}  Rc2 {[%clk 0:00:06]} 69. Kf1 {[%clk 0:00:59]}  Ke3 {[%clk 0:00:06]} 70. Rh8 {[%clk 0:00:58]}  e4 {[%clk 0:00:05]} 71. Ra8 {[%clk 0:00:57]}  Rc3 {[%clk 0:00:05]} 72. Ra1 {[%clk 0:00:55]}  f3 {[%clk 0:00:04]} 73. Kg1 {[%clk 0:00:54]}  Kf4 {[%clk 0:00:05]} 74. Kh2 {[%clk 0:00:53]}  Rc2+ {[%clk 0:00:05]} 75. Kh3 {[%clk 0:00:53]}  Rc8 {[%clk 0:00:05]} 76. Kh2 {[%clk 0:00:52]}  Rh8+ {[%clk 0:00:05]} 77. Kg1 {[%clk 0:00:52]}  Kg3 {[%clk 0:00:06]} 78. Ra3 {[%clk 0:00:51]}  Rc8 {[%clk 0:00:04]} 79. Ra1 {[%clk 0:00:50]}  e3 {[%clk 0:00:04]} 80. Kh1 {[%clk 0:00:50]}  Rh8+ {[%clk 0:00:04]} 81. Kg1 {[%clk 0:00:49]}  f2+ {[%clk 0:00:04]} 82. Kf1 {[%clk 0:00:47]}  Rh1+ {[%clk 0:00:04]} 0-1


[Site "https://www.chess.com"]

[Event "Titled Tuesday Blitz July 18 Early 2023"]
[White "Hajiyev, Kanan"]
[Black "Travadon, Loic"]
[WhiteFideId "13404148"]
[BlackFideId "26092131"]
[WhiteElo "2540"]
[BlackElo "2321"]
[Result "1-0"]
[Round "5"]
[TimeControl "180+2"]
[Date "2023.07.18"]
[WhiteClock "0:02:22"]
[BlackClock "0:00:46"]
[Board "123"]

1. d4 {[%clk 0:03:00]}  d5 {[%clk 0:02:59]} 2. c4 {[%clk 0:03:01]}  e6 {[%clk 0:02:59]} 3. cxd5 {[%clk 0:03:02]}  exd5 {[%clk 0:02:59]} 4. Nc3 {[%clk 0:03:03]}  Nf6 {[%clk 0:02:59]} 5. Qc2 {[%clk 0:03:04]}  c6 {[%clk 0:02:55]} 6. Nf3 {[%clk 0:03:03]}  Bb4 {[%clk 0:02:51]} 7. Bg5 {[%clk 0:03:02]}  h6 {[%clk 0:02:50]} 8. Bf4 {[%clk 0:03:02]}  O-O {[%clk 0:02:49]} 9. e3 {[%clk 0:03:03]}  Nh5 {[%clk 0:02:38]} 10. Be5 {[%clk 0:03:01]}  Nd7 {[%clk 0:02:36]} 11. Bd3 {[%clk 0:03:01]}  Nxe5 {[%clk 0:02:35]} 12. dxe5 {[%clk 0:03:02]}  Bg4 {[%clk 0:02:23]} 13. h3 {[%clk 0:02:58]}  Bxf3 {[%clk 0:02:22]} 14. gxf3 {[%clk 0:02:59]}  d4 {[%clk 0:02:21]} 15. O-O-O {[%clk 0:02:58]}  Bxc3 {[%clk 0:02:04]} 16. bxc3 {[%clk 0:02:57]}  c5 {[%clk 0:02:04]} 17. c4 {[%clk 0:02:43]}  Qc7 {[%clk 0:01:44]} 18. f4 {[%clk 0:02:43]}  dxe3 {[%clk 0:01:31]} 19. fxe3 {[%clk 0:02:44]}  a6 {[%clk 0:01:10]} 20. Be4 {[%clk 0:02:39]}  Ng3 {[%clk 0:01:07]} 21. Bh7+ {[%clk 0:02:38]}  Kh8 {[%clk 0:01:06]} 22. Rhg1 {[%clk 0:02:39]}  Ne2+ {[%clk 0:01:03]} 23. Qxe2 {[%clk 0:02:35]}  Kxh7 {[%clk 0:01:03]} 24. Qg4 {[%clk 0:02:26]}  g6 {[%clk 0:00:50]} 25. Rd7 {[%clk 0:02:24]}  Qa5 {[%clk 0:00:48]} 26. Qxg6+ {[%clk 0:02:24]}  Kh8 {[%clk 0:00:46]} 27. Qg7# {[%clk 0:02:22]} 1-0


[Site "https://www.chess.com"]

[Event "Titled Tuesday Blitz July 18 Early 2023"]
[White "Girya, Olga"]
[Black "lgabi"]
[WhiteFideId "4195752"]
[WhiteElo "2538"]
[BlackElo "2307"]
[Result "0-1"]
[Round "5"]
[TimeControl "180+2"]
[Date "2023.07.18"]
[WhiteClock "0:00:00"]
[BlackClock "0:00:08"]
[Board "124"]

1. d4 {[%clk 0:03:00]}  d5 {[%clk 0:02:59]} 2. Nf3 {[%clk 0:03:00]}  Nf6 {[%clk 0:02:58]} 3. c4 {[%clk 0:03:00]}  e6 {[%clk 0:02:58]} 4. Nc3 {[%clk 0:03:01]}  c6 {[%clk 0:02:57]} 5. e3 {[%clk 0:02:58]}  Nbd7 {[%clk 0:02:54]} 6. Qc2 {[%clk 0:02:58]}  Bd6 {[%clk 0:02:53]} 7. b3 {[%clk 0:02:57]}  e5 {[%clk 0:02:42]} 8. cxd5 {[%clk 0:02:56]}  cxd5 {[%clk 0:02:13]} 9. Nb5 {[%clk 0:02:34]}  Bb4+ {[%clk 0:02:12]} 10. Bd2 {[%clk 0:02:33]}  Bxd2+ {[%clk 0:01:59]} 11. Nxd2 {[%clk 0:02:13]}  O-O {[%clk 0:01:55]} 12. Qc7 {[%clk 0:02:01]}  exd4 {[%clk 0:01:33]} 13. Qxd8 {[%clk 0:02:00]}  Rxd8 {[%clk 0:01:32]} 14. Nxd4 {[%clk 0:02:00]}  Ne5 {[%clk 0:01:28]} 15. Be2 {[%clk 0:01:58]}  Bg4 {[%clk 0:01:27]} 16. Bxg4 {[%clk 0:01:49]}  Nfxg4 {[%clk 0:01:12]} 17. Ke2 {[%clk 0:01:46]}  Rac8 {[%clk 0:01:08]} 18. Rac1 {[%clk 0:01:38]}  a6 {[%clk 0:00:37]} 19. N2f3 {[%clk 0:01:15]}  Nxf3 {[%clk 0:00:29]} 20. gxf3 {[%clk 0:01:08]}  Nf6 {[%clk 0:00:28]} 21. Rhd1 {[%clk 0:01:07]}  g6 {[%clk 0:00:25]} 22. b4 {[%clk 0:00:49]}  Kf8 {[%clk 0:00:25]} 23. Nb3 {[%clk 0:00:45]}  b6 {[%clk 0:00:19]} 24. Nd4 {[%clk 0:00:37]}  Ke8 {[%clk 0:00:19]} 25. a4 {[%clk 0:00:29]}  Kd7 {[%clk 0:00:19]} 26. Kd3 {[%clk 0:00:27]}  Ng8 {[%clk 0:00:10]} 27. f4 {[%clk 0:00:25]}  Ne7 {[%clk 0:00:10]} 28. b5 {[%clk 0:00:05]}  axb5 {[%clk 0:00:08]} 29. axb5 {[%clk 0:00:05]}  Rxc1 {[%clk 0:00:08]} 30. Rxc1 {[%clk 0:00:05]}  Ra8 {[%clk 0:00:09]} 31. Rc3 {[%clk 0:00:03]}  Ra2 {[%clk 0:00:09]} 32. Ne2 {[%clk 0:00:01]}  Nf5 {[%clk 0:00:08]} 33. Rb3 {[%clk 0:00:02]}  Nd6 {[%clk 0:00:08]} 34. h3 {[%clk 0:00:02]}  Ne4 {[%clk 0:00:08]} 35. Ng3 {[%clk 0:00:00]}  Nc5+ {[%clk 0:00:08]} 0-1


[Site "https://www.chess.com"]

[Event "Titled Tuesday Blitz July 18 Early 2023"]
[White "AyMitecK"]
[Black "Barwinska, Ewa"]
[BlackFideId "21833761"]
[WhiteElo "2524"]
[BlackElo "2298"]
[Result "1-0"]
[Round "5"]
[TimeControl "180+2"]
[Date "2023.07.18"]
[WhiteClock "0:01:11"]
[BlackClock "0:00:02"]
[Board "128"]

1. e4 {[%clk 0:03:00]}  e5 {[%clk 0:02:56]} 2. Nf3 {[%clk 0:03:00]}  Nc6 {[%clk 0:02:56]} 3. Bc4 {[%clk 0:03:00]}  Bc5 {[%clk 0:02:51]} 4. c3 {[%clk 0:03:00]}  Bb6 {[%clk 0:02:41]} 5. O-O {[%clk 0:02:59]}  Nf6 {[%clk 0:02:39]} 6. d3 {[%clk 0:02:59]}  O-O {[%clk 0:02:39]} 7. Bb3 {[%clk 0:02:57]}  h6 {[%clk 0:02:39]} 8. Nbd2 {[%clk 0:02:55]}  d5 {[%clk 0:02:24]} 9. h3 {[%clk 0:02:55]}  Be6 {[%clk 0:01:42]} 10. Bc2 {[%clk 0:02:53]}  d4 {[%clk 0:01:36]} 11. Kh1 {[%clk 0:02:50]}  Nh7 {[%clk 0:01:22]} 12. g4 {[%clk 0:02:47]}  Ng5 {[%clk 0:01:12]} 13. Nxg5 {[%clk 0:02:45]}  Qxg5 {[%clk 0:01:12]} 14. Nf3 {[%clk 0:02:45]}  Qe7 {[%clk 0:01:09]} 15. c4 {[%clk 0:02:40]}  a5 {[%clk 0:01:00]} 16. Ba4 {[%clk 0:02:38]}  Nd8 {[%clk 0:00:57]} 17. Nxe5 {[%clk 0:02:25]}  c5 {[%clk 0:00:47]} 18. f4 {[%clk 0:02:23]}  Bc7 {[%clk 0:00:47]} 19. Nf3 {[%clk 0:02:21]}  Nc6 {[%clk 0:00:36]} 20. Bxc6 {[%clk 0:02:17]}  bxc6 {[%clk 0:00:37]} 21. Rf2 {[%clk 0:02:09]}  Bd7 {[%clk 0:00:28]} 22. Qg1 {[%clk 0:02:02]}  Rab8 {[%clk 0:00:27]} 23. Qg2 {[%clk 0:01:56]}  Kh8 {[%clk 0:00:26]} 24. f5 {[%clk 0:01:53]}  f6 {[%clk 0:00:22]} 25. Nh4 {[%clk 0:01:52]}  Be8 {[%clk 0:00:20]} 26. Qf3 {[%clk 0:01:44]}  Qe5 {[%clk 0:00:19]} 27. Qg2 {[%clk 0:01:31]}  Bf7 {[%clk 0:00:19]} 28. Bf4 {[%clk 0:01:29]}  Qe7 {[%clk 0:00:19]} 29. Qh2 {[%clk 0:01:27]}  Bxf4 {[%clk 0:00:17]} 30. Qxf4 {[%clk 0:01:28]}  a4 {[%clk 0:00:15]} 31. Ng2 {[%clk 0:01:25]}  a3 {[%clk 0:00:14]} 32. b3 {[%clk 0:01:25]}  Qa7 {[%clk 0:00:11]} 33. Qd6 {[%clk 0:01:21]}  Qb7 {[%clk 0:00:09]} 34. Qg3 {[%clk 0:01:19]}  Rbd8 {[%clk 0:00:07]} 35. Nf4 {[%clk 0:01:18]}  Qb4 {[%clk 0:00:07]} 36. Rc2 {[%clk 0:01:16]}  Qb7 {[%clk 0:00:07]} 37. h4 {[%clk 0:01:14]}  Qc7 {[%clk 0:00:07]} 38. g5 {[%clk 0:01:14]}  fxg5 {[%clk 0:00:08]} 39. hxg5 {[%clk 0:01:15]}  Qd6 {[%clk 0:00:08]} 40. Ng6+ {[%clk 0:01:12]}  Bxg6 {[%clk 0:00:08]} 41. Qxd6 {[%clk 0:01:12]}  Rxd6 {[%clk 0:00:09]} 42. fxg6 {[%clk 0:01:13]}  Rxg6 {[%clk 0:00:09]} 43. gxh6 {[%clk 0:01:14]}  Rxh6+ {[%clk 0:00:09]} 44. Rh2 {[%clk 0:01:12]}  Rf6 {[%clk 0:00:08]} 45. Rxh6+ {[%clk 0:01:11]}  Rxh6+ {[%clk 0:00:09]} 46. Kg2 {[%clk 0:01:11]}  Rg6+ {[%clk 0:00:10]} 47. Kf3 {[%clk 0:01:12]}  Rf6+ {[%clk 0:00:10]} 48. Kg3 {[%clk 0:01:12]}  Rg6+ {[%clk 0:00:10]} 49. Kf4 {[%clk 0:01:13]}  Rf6+ {[%clk 0:00:10]} 50. Ke5 {[%clk 0:01:13]}  Rf2 {[%clk 0:00:10]} 51. Kd6 {[%clk 0:01:13]}  Rd2 {[%clk 0:00:10]} 52. e5 {[%clk 0:01:13]}  Rxd3 {[%clk 0:00:10]} 53. e6 {[%clk 0:01:13]}  Re3 {[%clk 0:00:11]} 54. Kd7 {[%clk 0:01:13]}  Kg8 {[%clk 0:00:10]} 55. e7 {[%clk 0:01:14]}  d3 {[%clk 0:00:04]} 56. e8=Q+ {[%clk 0:01:13]}  Rxe8 {[%clk 0:00:05]} 57. Kxe8 {[%clk 0:01:14]}  g5 {[%clk 0:00:05]} 58. Rg1 {[%clk 0:01:13]}  d2 {[%clk 0:00:04]} 59. Rxg5+ {[%clk 0:01:13]}  Kh7 {[%clk 0:00:02]} 60. Rg1 {[%clk 0:01:11]} 1-0


[Site "https://www.chess.com"]

[Event "Titled Tuesday Blitz July 18 Early 2023"]
[White "Andreev, Konstantin"]
[Black "Akhayan, Ruben"]
[WhiteFideId "24239305"]
[BlackFideId "204439"]
[WhiteElo "2521"]
[BlackElo "2287"]
[Result "0-1"]
[Round "5"]
[TimeControl "180+2"]
[Date "2023.07.18"]
[WhiteClock "0:01:22"]
[BlackClock "0:01:21"]
[Board "129"]

1. e4 {[%clk 0:03:00]}  c6 {[%clk 0:02:56]} 2. d4 {[%clk 0:03:00]}  d5 {[%clk 0:02:57]} 3. e5 {[%clk 0:03:01]}  g6 {[%clk 0:02:56]} 4. f4 {[%clk 0:02:57]}  Bg7 {[%clk 0:02:56]} 5. Nf3 {[%clk 0:02:57]}  h5 {[%clk 0:02:57]} 6. Be3 {[%clk 0:02:57]}  Nh6 {[%clk 0:02:57]} 7. Nc3 {[%clk 0:02:55]}  Bg4 {[%clk 0:02:57]} 8. Qd2 {[%clk 0:02:55]}  Nf5 {[%clk 0:02:57]} 9. Bf2 {[%clk 0:02:55]}  Nd7 {[%clk 0:02:53]} 10. Ng5 {[%clk 0:02:55]}  Nh6 {[%clk 0:02:35]} 11. h3 {[%clk 0:02:41]}  Bf5 {[%clk 0:02:35]} 12. Be2 {[%clk 0:02:41]}  O-O {[%clk 0:02:29]} 13. Rg1 {[%clk 0:02:41]}  f6 {[%clk 0:02:25]} 14. g4 {[%clk 0:02:17]}  fxg5 {[%clk 0:02:18]} 15. fxg5 {[%clk 0:02:13]}  Nxg4 {[%clk 0:02:13]} 16. hxg4 {[%clk 0:02:13]}  Be6 {[%clk 0:02:13]} 17. gxh5 {[%clk 0:02:12]}  gxh5 {[%clk 0:02:11]} 18. Bxh5 {[%clk 0:02:13]}  Nb6 {[%clk 0:02:04]} 19. Bg6 {[%clk 0:01:56]}  Bf5 {[%clk 0:01:57]} 20. Bxf5 {[%clk 0:01:51]}  Rxf5 {[%clk 0:01:57]} 21. O-O-O {[%clk 0:01:49]}  e6 {[%clk 0:01:55]} 22. g6 {[%clk 0:01:46]}  Nc4 {[%clk 0:01:53]} 23. Qe2 {[%clk 0:01:46]}  Qf8 {[%clk 0:01:47]} 24. a3 {[%clk 0:01:37]}  Rxf2 {[%clk 0:01:33]} 25. Qh5 {[%clk 0:01:37]}  Qf4+ {[%clk 0:01:26]} 26. Kb1 {[%clk 0:01:37]}  Rh2 {[%clk 0:01:24]} 27. Qg4 {[%clk 0:01:29]}  Qxg4 {[%clk 0:01:23]} 28. Rxg4 {[%clk 0:01:22]}  Ne3 {[%clk 0:01:21]} 0-1


[Site "https://www.chess.com"]